bitfinex-derivatives/quotes_SOLF0:USTF0_20250919
["timestamp","ask_amount","ask_price","bid_price","bid_amount"]
[1758269461612,99.69,244.58,244.55,7.17]
[1758269461818,105.73,244.57,244.55,7.17]
[1758269462119,105.73,244.57,244.56,3.57846842]
[1758269471122,105.71,244.57,244.56,3.57846842]
[1758269478222,6.51,244.57,244.56,3.57846842]
[1758269478430,105.69,244.57,244.56,3.57846842]
[1758269486934,6.51,244.57,244.56,3.57846842]
[1758269487133,105.69,244.57,244.56,3.57846842]
[1758269487534,6.51,244.57,244.56,3.57846842]
[1758269487733,105.69,244.57,244.56,3.57846842]
[1758269492330,6.51,244.57,244.56,3.57846842]
[1758269492536,26.47,244.57,244.56,3.57846842]
[1758269494136,6.51,244.57,244.56,3.57846842]
[1758269494439,99.18,244.57,244.56,10.65453939]
[1758269494840,99.18,244.57,244.56,3.58453939]
[1758269495645,6.75,244.65,244.56,4.99740653]
[1758269495942,0.71165644,244.66,244.57,3.58453939]
[1758269495943,6.75,244.63,244.57,3.58453939]
[1758269496142,99.18,244.64,244.58,3.58453939]
[1758269496437,6.75,244.63,244.59,3.58453939]
[1758269496744,99.18,244.64,244.6,3.58453939]
[1758269496937,99.18,244.64,244.61,3.58453939]
[1758269497136,6.75,244.63,244.62,3.58453939]
[1758269501144,105.91,244.63,244.62,3.58453939]
[1758269505944,6.75,244.63,244.62,3.58453939]
[1758269506245,105.91,244.63,244.62,3.58453939]
[1758269506542,6.75,244.65,244.62,10.65453939]
[1758269506743,6.75,244.65,244.63,3.58453939]
[1758269507050,99.16,244.64,244.6,1.44216006]
[1758269507244,99.16,244.64,244.62,7.07]
[1758269507450,99.16,244.64,244.63,3.58982724]
[1758269511151,99.16,244.64,244.63,10.65982724]
[1758269511350,0.71165644,244.66,244.64,7.07]
[1758269511351,7.46165644,244.66,244.64,7.07]
[1758269511550,7.46165644,244.66,244.65,3.58982724]
[1758269512051,106.62165644,244.66,244.65,3.58982724]
[1758269512550,0.71165644,244.66,244.65,3.58982724]
[1758269512850,99.85165644,244.66,244.65,3.58982724]
[1758269513052,106.60165644,244.66,244.65,3.58982724]
[1758269515151,0.71165644,244.66,244.65,3.58982724]
[1758269515347,99.85165644,244.66,244.65,3.58982724]
[1758269515945,106.60165644,244.66,244.65,3.58982724]
[1758269516350,99.85165644,244.66,244.65,3.58982724]
[1758269517155,99.85165644,244.66,244.65,10.65982724]
[1758269518450,99.85165644,244.66,244.65,3.58982724]
[1758269520357,106.59165644,244.66,244.65,3.58982724]
[1758269524159,7.45165644,244.66,244.65,3.58982724]
[1758269524356,106.59165644,244.66,244.65,3.58982724]
[1758269537375,106.59165644,244.66,244.65,3.58418129]
[1758269546884,106.59165644,244.66,244.65,3.59312632]
[1758269579002,106.59165644,244.66,244.6,0.02929292]
[1758269584609,7.45165644,244.66,244.6,0.02929292]
[1758269584810,6.73,244.64,244.6,6.78929292]
[1758269585110,35.94,244.65,244.6,6.78929292]
[1758269585310,6.73,244.64,244.6,6.78929292]
[1758269586006,35.94,244.65,244.6,6.78929292]
[1758269587112,6.73,244.64,244.6,0.02929292]
[1758269587308,35.94,244.65,244.6,0.02929292]
[1758269587508,6.73,244.64,244.6,6.78929292]
[1758269587709,35.94,244.65,244.6,6.78929292]
[1758269588806,6.73,244.64,244.6,6.78929292]
[1758269589009,35.94,244.65,244.6,6.78929292]
[1758269590707,6.73,244.64,244.6,6.78929292]
[1758269591203,6.73,244.64,244.6,0.02929292]
[1758269591406,6.73,244.64,244.61,6.76]
[1758269592112,8.93632249,244.62,244.52,3.44019411]
[1758269592320,89.76,244.61,244.49,3.44019411]
[1758269592514,6.73,244.6,244.46,3.44019411]
[1758269592814,6.73,244.55,244.44,6.76]
[1758269593013,6.73,244.53,244.44,6.76]
[1758269593214,1.02285432,244.52,244.44,6.76]
[1758269593414,16.50877378,244.51,244.44,6.76]
[1758269593618,1.02285432,244.5,244.44,6.76]
[1758269594910,1.02285432,244.49,244.42,6.76]
[1758269595116,1.02285432,244.48,244.42,6.76]
[1758269595318,1.02285432,244.47,244.42,6.76]
[1758269596216,1.02285432,244.47,244.38,6.76]
[1758269596810,0.03066343,244.45,244.38,6.76]
[1758269609728,0.03066343,244.45,244.39,1.41412853]
[1758269609929,0.03066343,244.45,244.4,6.48]
[1758269616434,0.03066343,244.45,244.38,1.41412853]
[1758269616729,0.03066343,244.45,244.33,66.76308954]
[1758269616730,0.03066343,244.45,244.39,6.48]
[1758269616922,6.76,244.43,244.39,6.48]
[1758269617126,1.41412853,244.44,244.39,6.48]
[1758269617330,6.76,244.43,244.39,6.48]
[1758269617834,1.41412853,244.44,244.39,6.48]
[1758269618230,7.7829333,244.43,244.34,6.48]
[1758269618431,6.76,244.43,244.34,6.48]
[1758269619030,0.03066343,244.45,244.34,7.89412853]
[1758269619237,0.03066343,244.45,244.38,6.48]
[1758269622139,0.03066343,244.45,244.41,6.48]
[1758269624238,0.03066343,244.45,244.38,6.48]
[1758269631346,1.02284895,244.44,244.38,6.48]
[1758269635247,1.02284895,244.44,244.39,6.48]
[1758269636247,1.02284895,244.44,244.4,3.44019411]
[1758269636550,1.02284895,244.44,244.41,6.52]
[1758269636748,1.02284895,244.44,244.4,3.44019411]
[1758269636950,1.02284895,244.44,244.41,6.52]
[1758269637246,1.02284895,244.44,244.4,3.44019411]
[1758269638145,1.02284895,244.44,244.41,6.95]
[1758269638447,1.02284895,244.44,244.4,3.44019411]
[1758269639045,1.02284895,244.44,244.41,6.95]
[1758269639251,1.02284895,244.44,244.4,3.44019411]
[1758269639552,1.02284895,244.44,244.41,6.95]
[1758269639852,1.02284895,244.44,244.4,3.44019411]
[1758269641150,1.02284895,244.44,244.41,6.95]
[1758269641346,1.02284895,244.44,244.4,3.44019411]
[1758269641743,1.02284895,244.44,244.41,6.95]
[1758269642153,1.02284895,244.44,244.4,3.44019411]
[1758269642652,1.02284895,244.44,244.41,6.95]
[1758269642852,1.02284895,244.44,244.4,3.44019411]
[1758269643354,1.02284895,244.44,244.41,6.95]
[1758269643652,1.02284895,244.44,244.4,3.44019411]
[1758269643852,1.02284895,244.44,244.41,6.95]
[1758269644450,1.02284895,244.44,244.4,3.44019411]
[1758269644651,1.02284895,244.44,244.41,6.95]
[1758269644952,1.02284895,244.44,244.4,3.44019411]
[1758269645151,1.02284895,244.44,244.41,6.95]
[1758269645452,1.02284895,244.44,244.4,3.44019411]
[1758269646055,1.02290271,244.43,244.4,3.44019411]
[1758269646351,1.02290271,244.42,244.41,10.39019411]
[1758269646749,0.03066343,244.45,244.42,6.95]
[1758269646951,1.02290271,244.44,244.41,3.44019411]
[1758269647357,1.02290271,244.44,244.42,6.95]
[1758269647550,1.02290271,244.44,244.41,3.44019411]
[1758269647947,1.02290271,244.44,244.42,6.95]
[1758269648452,1.02290271,244.44,244.41,3.44019411]
[1758269648648,1.02290271,244.44,244.42,6.95]
[1758269648848,1.02290271,244.44,244.41,3.44019411]
[1758269649259,1.02290271,244.44,244.42,6.95]
[1758269649447,1.02290271,244.44,244.41,3.44019411]
[1758269649652,1.02290271,244.44,244.42,6.95]
[1758269649956,1.02290271,244.44,244.41,3.44019411]
[1758269650358,1.02290271,244.44,244.42,6.95]
[1758269650556,0.03066343,244.45,244.42,6.95]
[1758269651058,0.03066343,244.45,244.41,3.44905539]
[1758269651656,6.70066343,244.45,244.42,6.95]
[1758269652055,6.70066343,244.45,244.41,3.44905539]
[1758269652254,6.70066343,244.45,244.42,6.95]
[1758269652453,6.70066343,244.45,244.41,3.44905539]
[1758269652654,6.70066343,244.45,244.42,6.95]
[1758269652855,0.03066343,244.45,244.41,3.44905539]
[1758269653054,0.03066343,244.45,244.42,6.95]
[1758269653251,0.03066343,244.45,244.41,3.44905539]
[1758269653656,0.03066343,244.45,244.42,6.95]
[1758269653951,0.03066343,244.45,244.41,3.44905539]
[1758269654460,0.03066343,244.45,244.42,6.95]
[1758269654851,0.03066343,244.45,244.41,3.44905539]
[1758269655256,0.03066343,244.45,244.42,6.95]
[1758269655460,0.03066343,244.45,244.41,3.44905539]
[1758269655656,0.03066343,244.45,244.42,6.95]
[1758269656359,0.03066343,244.45,244.42,3.44905539]
[1758269656859,0.03066343,244.45,244.43,6.95]
[1758269657056,0.03066343,244.45,244.42,3.44905539]
[1758269657558,0.03066343,244.45,244.43,6.95]
[1758269657758,0.03066343,244.45,244.42,3.44905539]
[1758269658154,0.03066343,244.45,244.43,6.95]
[1758269658361,0.03066343,244.45,244.42,3.44905539]
[1758269658557,0.03066343,244.45,244.43,6.95]
[1758269659157,6.67,244.43,244.4,6.95]
[1758269659456,6.67,244.43,244.38,3.44905539]
[1758269660155,6.69598625,244.43,244.39,6.95]
[1758269660351,6.69598625,244.43,244.38,6.95]
[1758269661356,0.02598625,244.43,244.38,6.95]
[1758269661561,0.02598625,244.43,244.41,6.95]
[1758269662059,0.02598625,244.43,244.4,3.44905539]
[1758269662855,0.02598625,244.43,244.41,6.95]
[1758269663256,0.02598625,244.43,244.4,3.44905539]
[1758269663755,0.02598625,244.43,244.41,6.95]
[1758269664262,0.02598625,244.43,244.39,3.44905539]
[1758269665353,0.02598625,244.43,244.4,6.95]
[1758269665759,0.02598625,244.43,244.39,3.44905539]
[1758269666260,0.02598625,244.43,244.4,6.95]
[1758269666959,0.02598625,244.43,244.39,3.44905539]
[1758269667260,0.02598625,244.43,244.4,6.95]
[1758269667461,0.02598625,244.43,244.39,6.95]
[1758269667656,0.02598625,244.43,244.38,3.44905539]
[1758269667857,0.02598625,244.43,244.39,6.95]
[1758269668052,0.02598625,244.43,244.39,7.16]
[1758269668360,0.02598625,244.43,244.38,3.44905539]
[1758269668663,0.02598625,244.43,244.4,7.16]
[1758269669064,0.02598625,244.43,244.39,3.44905539]
[1758269669256,0.02598625,244.43,244.4,7.16]
[1758269669462,0.02598625,244.43,244.39,3.44905539]
[1758269670160,0.02598625,244.43,244.4,7.16]
[1758269670361,0.02598625,244.43,244.39,3.44905539]
[1758269670557,0.02598625,244.43,244.4,7.16]
[1758269670760,0.02598625,244.43,244.39,3.44905539]
[1758269670961,0.02598625,244.43,244.4,7.16]
[1758269671160,0.02598625,244.43,244.39,3.44905539]
[1758269671469,0.02598625,244.43,244.4,7.16]
[1758269671770,0.02598625,244.43,244.39,3.44905539]
[1758269671967,0.02598625,244.43,244.4,7.16]
[1758269672175,0.02598625,244.43,244.39,3.44905539]
[1758269672465,0.02598625,244.43,244.4,7.16]
[1758269672667,0.02598625,244.43,244.39,3.44905539]
[1758269673463,0.02598625,244.43,244.39,7.16]
[1758269674462,0.02598625,244.43,244.39,10.60905539]
[1758269674669,0.02598625,244.43,244.41,7.16]
[1758269679076,0.02598625,244.43,244.4,3.44905539]
[1758269679368,0.02598625,244.43,244.41,7.16]
[1758269681376,0.02598625,244.43,244.4,3.44905539]
[1758269681574,0.02598625,244.43,244.41,7.16]
[1758269681970,0.02598625,244.43,244.4,3.44905539]
[1758269682367,0.02598625,244.43,244.41,7.16]
[1758269682871,0.02598625,244.43,244.4,3.44905539]
[1758269683772,0.02598625,244.43,244.41,7.16]
[1758269684069,0.02598625,244.43,244.4,3.44905539]
[1758269684275,0.02598625,244.43,244.41,7.16]
[1758269684475,0.02598625,244.43,244.4,3.44905539]
[1758269685577,0.02598625,244.43,244.41,7.16]
[1758269686377,0.02598625,244.43,244.4,3.44905539]
[1758269686979,0.02598625,244.43,244.41,7.16]
[1758269687176,0.02598625,244.43,244.4,3.44905539]
[1758269687375,0.02598625,244.43,244.41,7.16]
[1758269688376,0.02598625,244.43,244.41,9.37003041]
[1758269688581,0.02598625,244.43,244.42,7.16]
[1758269689477,6.74,244.52,244.42,7.16]
[1758269689682,6.74,244.52,244.47,2.21003041]
[1758269689885,7.45205688,244.52,244.48,7.16]
[1758269690182,7.45205688,244.52,244.47,2.21003041]
[1758269690575,7.45205688,244.52,244.48,7.16]
[1758269690975,7.45205688,244.52,244.47,2.21003041]
[1758269691381,7.45205688,244.52,244.48,7.16]
[1758269692479,7.45205688,244.52,244.47,2.21003041]
[1758269692683,7.45205688,244.52,244.48,7.16]
[1758269692985,6.74,244.51,244.48,7.16]
[1758269693579,6.74,244.51,244.47,2.21003041]
[1758269693784,0.71205688,244.52,244.47,2.21003041]
[1758269694185,7.45205688,244.52,244.47,2.21003041]
[1758269694681,6.74,244.51,244.48,7.16]
[1758269698787,0.71205688,244.52,244.47,2.21003041]
[1758269699188,0.71205688,244.52,244.45,6.85]
[1758269699189,6.75,244.51,244.45,6.85]
[1758269699584,6.75,244.51,244.43,3.44518386]
[1758269701485,0.71205688,244.52,244.42,10.29518386]
[1758269701886,6.75,244.51,244.42,10.29518386]
[1758269702085,0.71205688,244.52,244.42,10.29518386]
[1758269702284,6.75,244.51,244.42,10.29518386]
[1758269702687,6.75,244.51,244.43,6.85]
[1758269702888,25.44,244.5,244.43,6.85]
[1758269703189,47.83,244.51,244.43,6.85]
[1758269703690,47.83,244.51,244.43,10.29518386]
[1758269703891,47.83,244.51,244.44,6.85]
[1758269704190,0.71205688,244.52,244.45,2.21003041]
[1758269704392,0.71205688,244.52,244.46,6.85]
[1758269706392,0.71205688,244.52,244.45,12.50521427]
[1758269706393,6.75,244.51,244.45,12.50521427]
[1758269707794,6.75,244.51,244.46,6.85]
[1758269707988,6.75,244.51,244.45,5.65521427]
[1758269708294,6.75,244.51,244.45,3.44518386]
[1758269708489,6.75,244.51,244.46,6.85]
[1758269708884,6.75,244.51,244.45,3.44518386]
[1758269709096,6.75,244.51,244.46,6.85]
[1758269709494,6.75,244.51,244.45,3.44518386]
[1758269709696,6.75,244.51,244.45,10.29518386]
[1758269713094,6.75,244.51,244.45,6.85]
[1758269713300,6.75,244.51,244.45,10.29518386]
[1758269714101,6.75,244.51,244.45,6.85]
[1758269714396,6.75,244.51,244.45,10.29518386]
[1758269715803,6.75,244.51,244.45,3.44518386]
[1758269716003,0.71205688,244.52,244.46,6.85]
[1758269718405,6.75,244.51,244.46,6.85]
[1758269718805,0.71205688,244.52,244.46,6.85]
[1758269719201,6.75,244.51,244.46,6.85]
[1758269719902,6.75,244.51,244.43,10.29518386]
[1758269723208,6.75,244.51,244.43,6.85]
[1758269724509,57.13,244.51,244.43,6.85]
[1758269724705,57.13,244.51,244.44,6.85]
[1758269725912,6.75,244.51,244.44,6.85]
[1758269730310,6.75,244.51,244.44,10.29518386]
[1758269732210,6.75,244.51,244.45,2.21003041]
[1758269733411,6.75,244.51,244.46,6.82]
[1758269733602,6.75,244.51,244.45,2.21003041]
[1758269733801,52.41205688,244.52,244.49,1.41339974]
[1758269734410,6.6,244.51,244.49,1.41339974]
[1758269735212,52.41205688,244.52,244.49,1.41339974]
[1758269735911,6.6,244.51,244.49,1.41339974]
[1758269736106,52.41205688,244.52,244.49,1.41339974]
[1758269736514,6.6,244.51,244.46,1.41339974]
[1758269739615,6.6,244.49,244.46,1.41339974]
[1758269740014,81.28,244.5,244.46,1.41339974]
[1758269740614,6.6,244.49,244.46,1.41339974]
[1758269740814,81.28,244.5,244.46,1.41339974]
[1758269741214,6.6,244.49,244.46,1.41339974]
[1758269741414,81.28,244.5,244.46,1.41339974]
[1758269741716,94.16,244.49,244.46,1.41339974]
[1758269742214,6.6,244.48,244.46,1.41339974]
[1758269744011,94.16,244.49,244.46,1.41339974]
[1758269744414,6.6,244.51,244.46,1.41339974]
[1758269744614,37.4,244.51,244.5,1.41339974]
[1758269744916,6.6,244.51,244.5,1.41339974]
[1758269748921,6.6,244.51,244.45,3.44518386]
[1758269749117,99.81205688,244.52,244.48,1.41339974]
[1758269749420,6.6,244.51,244.48,8.23339974]
[1758269749620,6.6,244.51,244.49,6.82]
[1758269749818,99.1,244.5,244.49,6.82]
[1758269750217,99.1,244.5,244.48,1.41339974]
[1758269750421,105.7,244.5,244.48,1.41339974]
[1758269751415,99.1,244.5,244.48,1.41339974]
[1758269751618,6.6,244.49,244.48,1.41339974]
[1758269753815,6.6,244.49,244.46,1.41339974]
[1758269754014,6.6,244.49,244.46,8.23339974]
[1758269754220,99.1,244.5,244.46,1.41339974]
[1758269754420,99.1,244.5,244.49,1.41339974]
[1758269754619,0.71205688,244.52,244.49,1.41339974]
[1758269754818,99.08,244.51,244.49,8.23339974]
[1758269755023,99.08,244.51,244.49,1.41339974]
[1758269755222,6.6,244.5,244.49,1.41339974]
[1758269762320,0.71205688,244.52,244.49,1.41339974]
[1758269762526,0.71205688,244.52,244.51,6.51]
[1758269762725,99.79205688,244.52,244.51,6.51]
[1758269764729,6.75,244.57,244.51,6.51]
[1758269764931,6.75,244.57,244.56,1.41339974]
[1758269765126,20.57,244.57,244.56,1.41339974]
[1758269767236,105.81,244.57,244.56,4.64456999]
[1758269767934,0.71186025,244.57,244.56,11.15456999]
[1758269768140,6.75,244.62,244.56,14.59172819]
[1758269768329,101.15,244.61,244.57,3.23117025]
[1758269768636,6.75,244.61,244.6,1.41339974]
[1758269768837,105.81,244.61,244.6,3.23117025]
[1758269769533,6.75,244.61,244.6,3.23117025]
[1758269769736,105.81,244.61,244.6,3.23117025]
[1758269770128,99.06,244.61,244.6,3.23117025]
[1758269770328,99.06,244.62,244.61,6.51]
[1758269770541,6.75,244.66,244.63,1.41339974]
[1758269770730,106.33,244.65,244.63,1.41339974]
[1758269771133,106.33,244.65,244.61,6.51]
[1758269771330,107.04168555,244.65,244.62,9.73096104]
[1758269771530,107.04168555,244.65,244.63,3.22096104]
[1758269771729,107.04168555,244.65,244.62,6.51]
[1758269771930,0.71168555,244.65,244.63,9.73096021]
[1758269772143,99.58,244.64,244.63,6.51]
[1758269772343,99.58,244.64,244.63,9.72889731]
[1758269773242,99.58,244.64,244.61,7.92339974]
[1758269773442,99.58,244.64,244.62,9.72743459]
[1758269773644,99.58,244.64,244.62,6.51]
[1758269774844,106.33,244.64,244.62,6.51]
[1758269779240,6.75,244.63,244.6,6.51]
[1758269779648,6.75,244.63,244.57,1.41339974]
[1758269779945,6.75,244.63,244.58,3.21050575]
[1758269780145,99.58,244.64,244.59,3.21050575]
[1758269780341,6.75,244.63,244.57,1.41339974]
[1758269780549,99.58,244.64,244.58,3.21029452]
[1758269780742,6.75,244.63,244.59,3.21029452]
[1758269781046,6.75,244.63,244.57,1.41339974]
[1758269781248,6.75,244.63,244.58,3.21002215]
[1758269781448,6.75,244.63,244.59,3.21002215]
[1758269781648,6.75,244.63,244.57,1.41339974]
[1758269781852,6.75,244.63,244.58,3.2094966]
[1758269782144,99.58,244.64,244.59,6.76964006]
[1758269782349,6.75,244.63,244.6,3.56014346]
[1758269782648,6.75,244.63,244.61,3.56014346]
[1758269782946,6.75,244.63,244.62,3.56014346]
[1758269787454,6.75,244.64,244.62,3.56014346]
[1758269787656,99.42,244.63,244.59,0.03054782]
[1758269787854,99.42,244.63,244.61,6.51]
[1758269788047,99.42,244.63,244.62,3.55907442]
[1758269790759,106.17,244.63,244.62,3.55907442]
[1758269791860,6.75,244.63,244.62,3.55907442]
[1758269792059,106.13,244.63,244.62,3.55907442]
[1758269800270,106.03,244.63,244.62,3.55907442]
[1758269802267,106.03,244.63,244.62,6.7812611]
[1758269805276,106.03,244.63,244.62,6.7849286]
[1758269805778,106.03,244.63,244.62,3.55907442]
[1758269806371,106.03,244.63,244.62,6.78716362]
[1758269812275,106.03,244.63,244.62,3.2280892]
[1758269817076,105.93,244.63,244.62,3.2280892]
[1758269825379,105.93,244.63,244.59,0.03054782]
[1758269825681,99.18,244.63,244.59,0.03054782]
[1758269825882,6.75,244.62,244.59,0.03054782]
[1758269826077,6.75,244.6,244.59,0.03054782]
[1758269836286,0.71168555,244.65,244.59,6.70054782]
[1758269836493,37.9,244.64,244.59,6.70054782]
[1758269836790,37.9,244.64,244.6,6.67]
[1758269837385,7.46163461,244.69,244.61,5.90432258]
[1758269837585,7.46163461,244.69,244.63,10.08803783]
[1758269837790,18.82,244.68,244.64,3.69793013]
[1758269837990,18.82,244.68,244.65,3.69793013]
[1758269838292,18.82,244.68,244.66,3.69793013]
[1758269838491,18.82,244.68,244.67,3.69793013]
[1758269839196,18.82,244.68,244.67,10.36793013]
[1758269843499,0.02692703,244.7,244.67,3.69793013]
[1758269843703,0.02692703,244.7,244.69,6.67]
[1758269844000,0.02692703,244.7,244.69,3.69793013]
[1758269844700,6.77692703,244.7,244.69,3.69793013]
[1758269845198,0.02692703,244.7,244.69,3.69793013]
[1758269845398,0.02692703,244.7,244.69,10.36793013]
[1758269849101,6.55692703,244.7,244.69,3.69793013]
[1758269857711,7.96893364,244.7,244.69,3.69793013]
[1758269858116,7.96893364,244.7,244.65,0.02937941]
[1758269858117,8.36893364,244.7,244.65,0.02937941]
[1758269858410,6.55692703,244.7,244.66,3.70735798]
[1758269858611,6.55692703,244.7,244.65,0.02937941]
[1758269858811,0.02692703,244.7,244.66,3.56252568]
[1758269859003,99.04,244.69,244.65,0.02937941]
[1758269859203,6.53,244.68,244.66,3.56251894]
[1758269859403,0.02692703,244.7,244.67,10.46215394]
[1758269859404,6.55692703,244.7,244.67,10.46215394]
[1758269859603,99.04,244.69,244.68,3.56215394]
[1758269860315,105.57,244.69,244.68,3.56215394]
[1758269871714,99.04,244.69,244.68,3.56215394]
[1758269873320,6.55692703,244.7,244.68,3.56215394]
[1758269873516,99.04,244.69,244.65,1.44138602]
[1758269873719,99.04,244.69,244.67,6.9]
[1758269873920,99.04,244.69,244.68,3.55982626]
[1758269874620,6.55692703,244.7,244.68,3.55982626]
[1758269874822,6.55692703,244.7,244.69,3.55982626]
[1758269875121,105.59692703,244.7,244.69,3.55982626]
[1758269876122,6.55692703,244.7,244.69,3.55982626]
[1758269876325,99.06692703,244.7,244.69,10.45982626]
[1758269880513,99.06692703,244.7,244.69,10.85982626]
[1758269880713,0.02692703,244.7,244.69,10.85982626]
[1758269881416,0.02692703,244.7,244.69,7.3]
[1758269881621,0.02692703,244.7,244.69,10.86566187]
[1758269883023,0.02692703,244.7,244.69,10.46566187]
[1758269883230,6.76692703,244.7,244.69,3.56566187]
[1758269883624,105.78692703,244.7,244.69,3.56566187]
[1758269884931,105.78692703,244.7,244.65,1.44138602]
[1758269885128,105.78692703,244.7,244.66,6.65]
[1758269885524,0.02692703,244.7,244.68,1.41200661]
[1758269885826,0.02692703,244.7,244.69,6.65]
[1758269886826,0.02692703,244.7,244.69,7.05]
[1758269898544,0.02692703,244.7,244.69,6.65]
[1758269902041,0.02692703,244.7,244.69,8.06200661]
[1758269907347,0.02692703,244.7,244.69,11.88284798]
[1758269907547,6.74,244.8,244.7,6.65]
[1758269907736,6.74,244.8,244.73,8.06200661]
[1758269908744,6.74,244.8,244.74,0.02813449]
[1758269913756,6.74,244.81,244.75,6.49]
[1758269914848,6.74,244.81,244.74,0.02813449]
[1758269927863,6.74,244.81,244.75,6.49]
[1758269930364,0.71126372,244.82,244.75,6.49]
[1758269930664,0.71126372,244.82,244.75,9.90959837]
[1758269930864,0.71126372,244.82,244.76,6.49]
[1758269932154,15.4,244.84,244.76,6.49]
[1758269932360,15.4,244.84,244.77,6.49]
[1758269933261,15.4,244.84,244.78,3.59835898]
[1758269933466,8.66,244.84,244.79,10.08835898]
[1758269933663,8.66,244.84,244.8,3.59835898]
[1758269933664,6.74,244.82,244.8,3.59835898]
[1758269933964,7.45111111,244.87,244.81,10.08835898]
[1758269934168,0.71111111,244.87,244.82,3.59835898]
[1758269934361,0.71111111,244.87,244.83,3.59835898]
[1758269934667,0.71111111,244.87,244.84,3.59835898]
[1758269934865,6.74,244.86,244.85,3.59835898]
[1758269938262,6.73,244.86,244.85,3.59835898]
[1758269955679,7.44111111,244.87,244.85,3.59835898]
[1758269955880,7.44111111,244.87,244.86,3.59835898]
[1758269961284,7.44111111,244.87,244.86,3.59282126]
[1758269965285,7.84111111,244.87,244.86,3.59282126]
[1758269965478,6.73,244.86,244.84,0.02905422]
[1758269965878,0.71111111,244.87,244.84,0.02905422]
[1758269966082,98.94,244.86,244.85,6.54]
[1758269966679,99.02,244.9,244.84,0.02905422]
[1758269967280,99.02,244.9,244.85,6.54]
[1758269967585,105.75,244.9,244.84,0.02905422]
[1758269968384,99.02,244.9,244.84,0.02905422]
[1758269968584,99.02,244.9,244.85,6.84]
[1758269969284,99.02,244.9,244.84,0.02905422]
[1758269970885,99.02,244.9,244.84,6.86905422]
[1758269972089,6.67,244.91,244.84,6.86905422]
[1758269972288,99.0,244.9,244.84,6.86905422]
[1758269972587,98.98,244.9,244.84,6.86905422]
[1758269974286,98.98,244.9,244.84,10.28865259]
[1758269975595,6.67,244.89,244.84,10.28865259]
[1758269975783,105.65,244.9,244.84,10.28865259]
[1758269977889,98.98,244.9,244.86,1.40892729]
[1758269978092,6.67,244.89,244.86,1.40892729]
[1758269978291,98.98,244.9,244.86,1.40892729]
[1758269978693,6.67,244.89,244.86,1.40892729]
[1758269979196,6.67,244.89,244.86,8.24892729]
[1758269979397,6.67,244.89,244.86,1.40892729]
[1758269979597,6.67,244.95,244.87,6.84]
[1758269979794,105.63,244.95,244.89,1.40892729]
[1758269980394,6.67,244.94,244.9,0.02789036]
[1758269980589,6.67,244.94,244.9,6.86789036]
[1758269980794,98.96,244.95,244.9,6.86789036]
[1758269981096,6.67,244.94,244.9,6.86789036]
[1758269981493,98.96,244.95,244.92,6.84]
[1758269981702,98.96,244.95,244.93,1.40892729]
[1758269982602,98.96,244.95,244.94,3.70374485]
[1758269982801,98.96,244.95,244.94,10.54374485]
[1758269984800,99.18,244.99,244.94,10.54374485]
[1758269984999,99.18,244.99,244.95,3.70374485]
[1758269985202,6.67,244.98,244.96,3.70374485]
[1758269985398,6.67,244.98,244.97,3.70374485]
[1758269989397,0.71066094,245.01,244.97,3.70374485]
[1758269989599,6.67,245.01,244.98,3.70374485]
[1758269989798,6.67,245.01,244.99,3.70374485]
[1758269990001,6.67,245.01,245.0,3.70374485]
[1758269993200,106.05,245.01,245.0,3.70374485]
[1758269993503,6.67,245.01,245.0,3.70374485]
[1758269993702,106.03,245.01,245.0,3.70374485]
[1758270000809,105.95,245.01,245.0,3.70374485]
[1758270001005,99.28,245.01,245.0,3.70374485]
[1758270002903,106.01,245.01,245.0,3.70374485]
[1758270003506,106.01,245.01,244.95,0.02693762]
[1758270003706,106.01,245.01,244.96,3.66693568]